Workbook

Sheet Rio@1604
C1: Units
A2: Income Statement | C2: Renovated | D2: =132-D3 -> 82
A3: Rio@1604 | C3: Classic | D3: 50
C4: Total | D4: =SUM(D2:D3) -> 132
A5: Account | B5: Account Name | C5: Apr 2025 | D5: May 2025 | E5: Jun 2025 | F5: Jul 2025 | G5: Aug 2025 | H5: Sep 2025 | I5: Oct 2025 | J5: Nov 2025 | K5: Dec 2025 | L5: Jan 2026 | M5: Feb 2026 | N5: Mar 2026 | O5: Total | Q5: Income Statement: GL Account Type | R5: Income Statement: Property | S5: Income Statement: Property Look-Up Code | T5: Income Statement: Unit Count | U5: Income Statement: Month 1 Change Sign | V5: Income Statement: Month 2 Change Sign | W5: Income Statement: Month 3 Change Sign | X5: Income Statement: Month 4 Change Sign | Y5: Income Statement: Month 5 Change Sign | Z5: Income Statement: Month 6 Change Sign | AA5: Income Statement: Month 7 Change Sign | AB5: Income Statement: Month 8 Change Sign | AC5: Income Statement: Month 9 Change Sign | AD5: Income Statement: Month 10 Change Sign | AE5: Income Statement: Month 11 Change Sign | AF5: Income Statement: Month 12 Change Sign | AG5: Income Statement: Month 13 Change Sign | AH5: Income Statement: Total Change Sign | AI5: T12 | AJ5: T6 | AL5: T3 | AM5: T1
A6: Revenue
A7: Rent Revenue
A8: 4102 | B8: Gross Potential Rent | C8: 174661 | D8: 174661 | E8: 174661 | F8: 174661 | G8: 174661 | H8: 174661 | I8: 174661 | J8: 174661 | K8: 173661 | L8: 173661 | M8: 173661 | N8: 173661 | O8: =SUM(C8:N8) -> 2091932 | Q8: 4 | R8: Rio@1604 | S8: RIO | U8: =IF(5 = Q8,#REF! * -1,#REF!) ->  | V8: =IF(5 = Q8, C8 * -1, C8) -> 174661 | W8: =IF(5 = Q8, D8 * -1, D8) -> 174661 | X8: =IF(5 = Q8, E8 * -1, E8) -> 174661 | Y8: =IF(5 = Q8, F8 * -1, F8) -> 174661 | Z8: =IF(5 = Q8, G8 * -1, G8) -> 174661 | AA8: =IF(5 = Q8, H8 * -1, H8) -> 174661 | AB8: =IF(5 = Q8, I8 * -1, I8) -> 174661 | AC8: =IF(5 = Q8, J8 * -1, J8) -> 174661 | AD8: =IF(5 = Q8, K8 * -1, K8) -> 173661 | AE8: =IF(5 = Q8, L8 * -1, L8) -> 173661 | AF8: =IF(5 = Q8, M8 * -1, M8) -> 173661 | AG8: =IF(5 = Q8, N8 * -1, N8) -> 173661 | AH8: =IF(5 = Q8, O8 * -1, O8) -> 2091932 | AI8: =O8 -> 2091932 | AJ8: =SUM(I8:N8)*2 -> 2087932 | AL8: =SUM(L8:N8)*4 -> 2083932 | AM8: =N8*12 -> 2083932
A9: 4103 | B9: Gain/(Loss) To Lease | C9: -3691.61 | D9: -3685.57 | E9: -3660.95 | F9: -4382.65 | G9: -4517.79 | H9: -4247.51 | I9: -4955.09 | J9: -5107.69 | K9: -5490.02 | L9: -6223 | M9: -6891 | N9: -7025.95 | O9: -59878.83 | Q9: 4 | R9: Rio@1604 | S9: RIO | U9: =IF(5 = Q9,#REF! * -1,#REF!) ->  | V9: -3691.61 | W9: -3685.57 | X9: -3660.95 | Y9: -4382.65 | Z9: -4517.79 | AA9: -4247.51 | AB9: -4955.09 | AC9: -5107.69 | AD9: -5490.02 | AE9: -6223 | AF9: -6891 | AG9: -7025.95 | AH9: -59878.83 | AI9: =O9 -> -59878.83 | AJ9: =SUM(I9:N9)*2 -> -71385.5 | AL9: =SUM(L9:N9)*4 -> -80559.8 | AM9: =N9*12 -> -84311.4
A10: 4104 | B10: Less: Vacancy | C10: -22583.03 | D10: -16380.13 | E10: -14953.33 | F10: -17109.2 | G10: -20426.29 | H10: -18868.57 | I10: -23235.65 | J10: -20636.57 | K10: -11804.84 | L10: -8878.36 | M10: -7777.43 | N10: -7973.59 | O10: -190626.99 | Q10: 4 | R10: Rio@1604 | S10: RIO | U10: =IF(5 = Q10,#REF! * -1,#REF!) ->  | V10: -22583.03 | W10: -16380.13 | X10: -14953.33 | Y10: -17109.2 | Z10: -20426.29 | AA10: -18868.57 | AB10: -23235.65 | AC10: -20636.57 | AD10: -11804.84 | AE10: -8878.36 | AF10: -7777.43 | AG10: -7973.59 | AH10: -190626.99 | AI10: -190626.99 | AJ10: -160612.88 | AL10: -98517.52 | AM10: -95683.08
A11: 4108 | B11: Less: Concessions | C11: -6604.47 | D11: -5200.64 | E11: -5833.87 | F11: -6957.18 | G11: -7655.4 | H11: -5866.68 | I11: -5556.24 | J11: -3810.69 | K11: -5722.25 | L11: -7825.6 | M11: -9391 | N11: -9999.8 | O11: -80423.82 | Q11: 4 | R11: Rio@1604 | S11: RIO | U11: =IF(5 = Q11,#REF! * -1,#REF!) ->  | V11: -6604.47 | W11: -5200.64 | X11: -5833.87 | Y11: -6957.18 | Z11: -7655.4 | AA11: -5866.68 | AB11: -5556.24 | AC11: -3810.69 | AD11: -5722.25 | AE11: -7825.6 | AF11: -9391 | AG11: -9999.8 | AH11: -80423.82 | AI11: -80423.82 | AJ11: -84611.16 | AL11: -108865.6 | AM11: -119997.6
B12: Rent Revenue | C12: =SUM(C8:C11) -> 141781.89 | D12: 149394.66 | E12: 150212.85 | F12: 146211.97 | G12: 142061.52 | H12: 145678.24 | I12: 140914.02 | J12: 145106.05 | K12: 150643.89 | L12: =SUM(L8:L11) -> 150734.04 | M12: 149601.57 | N12: =SUM(N8:N11) -> 148661.66 | O12: 1761002.36 | Q12: 4 | R12: =#REF! ->  | S12: =#REF! ->  | T12: =#REF! ->  | U12: =SUM(U8:U11) ->  | V12: 141781.89 | W12: 149394.66 | X12: 150212.85 | Y12: 146211.97 | Z12: 142061.52 | AA12: 145678.24 | AB12: 140914.02 | AC12: 145106.05 | AD12: 150643.89 | AE12: 150734.04 | AF12: 149601.57 | AG12: 148661.66 | AH12: 1761002.36 | AI12: 1761002.36 | AJ12: 1771322.46 | AL12: 1795989.08 | AM12: 1783939.92
A14: Other Revenue
A15: 4201 | B15: Utility Reimbursement | C15: 12907.2 | D15: 10451.1 | E15: 11980.42 | F15: 12325.57 | G15: 11943.37 | H15: 10222.44 | I15: 9950.11 | J15: 11775.96 | K15: 11629.22 | L15: 11129.97 | M15: 11698.71 | N15: 13777.09 | O15: =SUM(C15:N15) -> 139791.16 | Q15: 4 | R15: Rio@1604 | S15: RIO | U15: =IF(5 = Q15,#REF! * -1,#REF!) ->  | V15: =IF(5 = Q15, C15 * -1, C15) -> 12907.2 | W15: =IF(5 = Q15, D15 * -1, D15) -> 10451.1 | X15: =IF(5 = Q15, E15 * -1, E15) -> 11980.42 | Y15: =IF(5 = Q15, F15 * -1, F15) -> 12325.57 | Z15: =IF(5 = Q15, G15 * -1, G15) -> 11943.37 | AA15: =IF(5 = Q15, H15 * -1, H15) -> 10222.44 | AB15: =IF(5 = Q15, I15 * -1, I15) -> 9950.11 | AC15: =IF(5 = Q15, J15 * -1, J15) -> 11775.96 | AD15: =IF(5 = Q15, K15 * -1, K15) -> 11629.22 | AE15: =IF(5 = Q15, L15 * -1, L15) -> 11129.97 | AF15: =IF(5 = Q15, M15 * -1, M15) -> 11698.71 | AG15: =IF(5 = Q15, N15 * -1, N15) -> 13777.09 | AH15: =IF(5 = Q15, O15 * -1, O15) -> 139791.16 | AI15: =O15 -> 139791.16 | AJ15: =SUM(I15:N15)*2 -> 139922.12 | AL15: =SUM(L15:N15)*4 -> 146423.08 | AM15: =N15*12 -> 165325.08
A16: 4202 | B16: Trash Income | C16: 1769.77 | D16: 908.22 | E16: 988.94 | F16: 1019.4 | G16: 1053.56 | H16: 1065.53 | I16: 1075.47 | J16: 1084.1 | K16: 1152.09 | L16: 1200.32 | M16: 1211.29 | N16: 1176.24 | O16: 13704.93 | Q16: 4 | R16: Rio@1604 | S16: RIO | U16: =IF(5 = Q16,#REF! * -1,#REF!) ->  | V16: 1769.77 | W16: 908.22 | X16: 988.94 | Y16: 1019.4 | Z16: 1053.56 | AA16: 1065.53 | AB16: 1075.47 | AC16: 1084.1 | AD16: 1152.09 | AE16: 1200.32 | AF16: 1211.29 | AG16: 1176.24 | AH16: 13704.93 | AI16: 13704.93 | AJ16: 13799.02 | AL16: 14351.4 | AM16: 14114.88
A17: 4203 | B17: Pest Control Income | C17: 877.93 | D17: 455.36 | E17: 495.44 | F17: 509.71 | G17: 501.78 | H17: 536.14 | I17: 544.12 | J17: 550.5 | K17: 592.39 | L17: 626.69 | M17: 637.9 | N17: 630.72 | O17: 6958.68 | Q17: 4 | R17: Rio@1604 | S17: RIO | U17: =IF(5 = Q17,#REF! * -1,#REF!) ->  | V17: 877.93 | W17: 455.36 | X17: 495.44 | Y17: 509.71 | Z17: 501.78 | AA17: 536.14 | AB17: 544.12 | AC17: 550.5 | AD17: 592.39 | AE17: 626.69 | AF17: 637.9 | AG17: 630.72 | AH17: 6958.68 | AI17: 6958.68 | AJ17: 7164.64 | AL17: 7581.24 | AM17: 7568.64
A18: 4204 | B18: Cable/Internet Fee | C18: 6886.18 | D18: 7151.32 | E18: 7403.46 | F18: 7494.27 | G18: 7410.32 | H18: 7586.13 | I18: 7623.44 | J18: 7835.27 | K18: 8401.78 | L18: 8883.71 | M18: 8647.64 | N18: 8691.09 | O18: 94014.61 | Q18: 4 | R18: Rio@1604 | S18: RIO | U18: =IF(5 = Q18,#REF! * -1,#REF!) ->  | V18: 6886.18 | W18: 7151.32 | X18: 7403.46 | Y18: 7494.27 | Z18: 7410.32 | AA18: 7586.13 | AB18: 7623.44 | AC18: 7835.27 | AD18: 8401.78 | AE18: 8883.71 | AF18: 8647.64 | AG18: 8691.09 | AH18: 94014.61 | AI18: 94014.61 | AJ18: 100165.86 | AL18: 104889.76 | AM18: 104293.08
A19: 4206 | B19: Administrative & Application Fee | C19: 1250 | D19: 2900 | E19: 2899 | F19: 1200 | G19: 651 | H19: 1550 | I19: 750 | J19: 4950 | K19: 2500 | L19: 1100 | M19: 2050 | N19: 550 | O19: 22350 | Q19: 4 | R19: Rio@1604 | S19: RIO | U19: =IF(5 = Q19,#REF! * -1,#REF!) ->  | V19: 1250 | W19: 2900 | X19: 2899 | Y19: 1200 | Z19: 651 | AA19: 1550 | AB19: 750 | AC19: 4950 | AD19: 2500 | AE19: 1100 | AF19: 2050 | AG19: 550 | AH19: 22350 | AI19: 22350 | AJ19: 23800 | AL19: 14800 | AM19: 6600
A20: 4207 | B20: Pet Income | C20: 906.45 | D20: 423.38 | E20: 300 | F20: 666.13 | G20: 250 | H20: 150 | I20: 139.52 | J20: 800 | K20: 550 | L20: -150 | M20: 75 | N20: 75 | O20: 4185.48 | Q20: 4 | R20: Rio@1604 | S20: RIO | U20: =IF(5 = Q20,#REF! * -1,#REF!) ->  | V20: 906.45 | W20: 423.38 | X20: 300 | Y20: 666.13 | Z20: 250 | AA20: 150 | AB20: 139.52 | AC20: 800 | AD20: 550 | AE20: -150 | AF20: 75 | AG20: 75 | AH20: 4185.48 | AI20: 4185.48 | AJ20: 2979.04 | AL20: 0 | AM20: 900
A21: 4211 | B21: Washer & Dryer Fee | C21: 2010.65 | D21: 2143.98 | E21: 2342.64 | F21: 1602.63 | G21: 1643.71 | H21: 1388.42 | I21: 1630.45 | J21: 1818.44 | K21: 2075.9 | L21: 2337.09 | M21: 2156.25 | N21: 2246.16 | O21: 23396.32 | Q21: 4 | R21: Rio@1604 | S21: RIO | U21: =IF(5 = Q21,#REF! * -1,#REF!) ->  | V21: 2010.65 | W21: 2143.98 | X21: 2342.64 | Y21: 1602.63 | Z21: 1643.71 | AA21: 1388.42 | AB21: 1630.45 | AC21: 1818.44 | AD21: 2075.9 | AE21: 2337.09 | AF21: 2156.25 | AG21: 2246.16 | AH21: 23396.32 | AI21: 23396.32 | AJ21: 24528.58 | AL21: 26958 | AM21: 26953.92
A22: 4212 | B22: Community Liability Income | C22: 1610.32 | D22: 1681.88 | E22: 1733.85 | F22: 1723.47 | G22: 1659.8 | H22: 1715.38 | I22: 1703.21 | J22: 1738.65 | K22: 1818.14 | L22: 1878.87 | M22: 1866.23 | N22: 1686.08 | O22: 20815.88 | Q22: 4 | R22: Rio@1604 | S22: RIO | U22: =IF(5 = Q22,#REF! * -1,#REF!) ->  | V22: 1610.32 | W22: 1681.88 | X22: 1733.85 | Y22: 1723.47 | Z22: 1659.8 | AA22: 1715.38 | AB22: 1703.21 | AC22: 1738.65 | AD22: 1818.14 | AE22: 1878.87 | AF22: 1866.23 | AG22: 1686.08 | AH22: 20815.88 | AI22: 20815.88 | AJ22: 21382.36 | AL22: 21724.72 | AM22: 20232.96
A23: 4213 | B23: Credit Builder Fee | C23: 567.02 | D23: 644.54 | E23: 814.59 | F23: 814.59 | G23: 814.59 | H23: 832.49 | I23: 868.29 | J23: 886.05 | K23: 895 | L23: 993.45 | M23: 1002.4 | N23: 1020.3 | O23: 10153.31 | Q23: 4 | R23: Rio@1604 | S23: RIO | U23: =IF(5 = Q23,#REF! * -1,#REF!) ->  | V23: 567.02 | W23: 644.54 | X23: 814.59 | Y23: 814.59 | Z23: 814.59 | AA23: 832.49 | AB23: 868.29 | AC23: 886.05 | AD23: 895 | AE23: 993.45 | AF23: 1002.4 | AG23: 1020.3 | AH23: 10153.31 | AI23: 10153.31 | AJ23: 11330.98 | AL23: 12064.6 | AM23: 12243.6
A24: 4214 | B24: Damages & Cleaning Fee | C24: 3935 | D24: 1985 | E24: 3675 | F24: 1119 | G24: 70 | H24: 1035 | I24: 1090 | J24: 335 | K24: 300 | L24: 0 | M24: 625 | N24: 260 | O24: 14429 | Q24: 4 | R24: Rio@1604 | S24: RIO | U24: =IF(5 = Q24,#REF! * -1,#REF!) ->  | V24: 3935 | W24: 1985 | X24: 3675 | Y24: 1119 | Z24: 70 | AA24: 1035 | AB24: 1090 | AC24: 335 | AD24: 300 | AE24: 0 | AF24: 625 | AG24: 260 | AH24: 14429 | AI24: 14429 | AJ24: 5220 | AL24: 3540 | AM24: 3120
A25: 4215 | B25: NSF Fee | C25: 0 | D25: 0 | E25: 0 | F25: 981.75 | G25: 150 | H25: 100 | I25: 50 | J25: 0 | K25: 0 | L25: 50 | M25: 50 | N25: 0 | O25: 1381.75 | Q25: 4 | R25: Rio@1604 | S25: RIO | U25: =IF(5 = Q25,#REF! * -1,#REF!) ->  | V25: 0 | W25: 0 | X25: 0 | Y25: 981.75 | Z25: 150 | AA25: 100 | AB25: 50 | AC25: 0 | AD25: 0 | AE25: 50 | AF25: 50 | AG25: 0 | AH25: 1381.75 | AI25: 1381.75 | AJ25: 300 | AL25: 400 | AM25: 0
A26: 4216 | B26: Late Fee | C26: 3311.5 | D26: 3141.5 | E26: 4992.3 | F26: 4912.3 | G26: 3653.1 | H26: 5240.3 | I26: 4833.1 | J26: 5014.7 | K26: 5874.5 | L26: 5239.8 | M26: 5742.1 | N26: 5638.4 | O26: 57593.6 | Q26: 4 | R26: Rio@1604 | S26: RIO | U26: =IF(5 = Q26,#REF! * -1,#REF!) ->  | V26: 3311.5 | W26: 3141.5 | X26: 4992.3 | Y26: 4912.3 | Z26: 3653.1 | AA26: 5240.3 | AB26: 4833.1 | AC26: 5014.7 | AD26: 5874.5 | AE26: 5239.8 | AF26: 5742.1 | AG26: 5638.4 | AH26: 57593.6 | AI26: 57593.6 | AJ26: 64685.2 | AL26: 66481.2 | AM26: 67660.8
A27: 4217 | B27: Month to Month Fee | C27: 812.9 | D27: 444.84 | E27: 640.81 | F27: 532.1 | G27: 300 | H27: 300 | I27: 546.76 | J27: 522.75 | K27: 300 | L27: 798.39 | M27: 1323.21 | N27: 1143.14 | O27: 7664.9 | Q27: 4 | R27: Rio@1604 | S27: RIO | U27: =IF(5 = Q27,#REF! * -1,#REF!) ->  | V27: 812.9 | W27: 444.84 | X27: 640.81 | Y27: 532.1 | Z27: 300 | AA27: 300 | AB27: 546.76 | AC27: 522.75 | AD27: 300 | AE27: 798.39 | AF27: 1323.21 | AG27: 1143.14 | AH27: 7664.9 | AI27: 7664.9 | AJ27: 9268.5 | AL27: 13058.96 | AM27: 13717.68
A28: 4218 | B28: Lease Buy Out & Transfer Fee | C28: 1232 | D28: 2864 | E28: 0 | F28: 2920 | G28: 0 | H28: 2398 | I28: 0 | J28: 0 | K28: 0 | L28: 0 | M28: 0 | N28: 0 | O28: 9414 | Q28: 4 | R28: Rio@1604 | S28: RIO | U28: =IF(5 = Q28,#REF! * -1,#REF!) ->  | V28: 1232 | W28: 2864 | X28: 0 | Y28: 2920 | Z28: 0 | AA28: 2398 | AB28: 0 | AC28: 0 | AD28: 0 | AE28: 0 | AF28: 0 | AG28: 0 | AH28: 9414 | AI28: 9414 | AJ28: 0 | AL28: 0 | AM28: 0
A29: 4221 | B29: Interest on Bank Accounts | C29: 291.39 | D29: 350.43 | E29: 155.42 | F29: 105.25 | G29: 244.62 | H29: 0 | I29: 0 | J29: 0 | K29: 0 | L29: 0 | M29: 0 | N29: 0 | O29: 1147.11 | Q29: 4 | R29: Rio@1604 | S29: RIO | U29: =IF(5 = Q29,#REF! * -1,#REF!) ->  | V29: 291.39 | W29: 350.43 | X29: 155.42 | Y29: 105.25 | Z29: 244.62 | AA29: 0 | AB29: 0 | AC29: 0 | AD29: 0 | AE29: 0 | AF29: 0 | AG29: 0 | AH29: 1147.11 | AI29: 1147.11 | AJ29: 0 | AL29: 0 | AM29: 0
A30: 4227 | B30: Deposit Alternative | C30: 187.75 | D30: 191.75 | E30: 227 | F30: 227 | G30: 156.81 | H30: 232.43 | I30: 149.12 | J30: 131.99 | K30: 52.8 | L30: 212.04 | M30: 262.66 | N30: 181.91 | O30: 2213.26 | Q30: 4 | R30: Rio@1604 | S30: RIO | U30: =IF(5 = Q30,#REF! * -1,#REF!) ->  | V30: 187.75 | W30: 191.75 | X30: 227 | Y30: 227 | Z30: 156.81 | AA30: 232.43 | AB30: 149.12 | AC30: 131.99 | AD30: 52.8 | AE30: 212.04 | AF30: 262.66 | AG30: 181.91 | AH30: 2213.26 | AI30: 2213.26 | AJ30: 1981.04 | AL30: 2626.44 | AM30: 2182.92
B31: Other Revenue | C31: =SUM(C15:C30) -> 38556.06 | D31: =SUM(D15:D30) -> 35737.3 | E31: =SUM(E15:E30) -> 38648.87 | F31: =SUM(F15:F30) -> 38153.17 | G31: =SUM(G15:G30) -> 30502.66 | H31: =SUM(H15:H30) -> 34352.26 | I31: =SUM(I15:I30) -> 30953.59 | J31: =SUM(J15:J30) -> 37443.41 | K31: =SUM(K15:K30) -> 36141.82 | L31: =SUM(L15:L30) -> 34300.33 | M31: =SUM(M15:M30) -> 37348.39 | N31: =SUM(N15:N30) -> 37076.13 | O31: 429213.99 | Q31: 4 | R31: =R30 -> Rio@1604 | S31: =S30 -> RIO | T31: =T30 -> 0 | U31: =SUM(U15:U30) ->  | V31: 38556.06 | W31: 35737.3 | X31: 38648.87 | Y31: 38153.17 | Z31: 30502.66 | AA31: 34352.26 | AB31: 30953.59 | AC31: 37443.41 | AD31: 36141.82 | AE31: 34300.33 | AF31: 37348.39 | AG31: 37076.13 | AH31: 429213.99 | AI31: 429213.99 | AJ31: 426527.34 | AL31: 434899.4 | AM31: 444913.56
B33: Revenue | C33: =C31+C12 -> 180337.95 | D33: 185131.96 | E33: 188861.72 | F33: 184365.14 | G33: 172564.18 | H33: 180030.5 | I33: 171867.61 | J33: 182549.46 | K33: 186785.71 | L33: 185034.37 | M33: 186949.96 | N33: =N31+N12 -> 185737.79 | O33: 2190216.35 | Q33: 4 | R33: =R30 -> Rio@1604 | S33: =S30 -> RIO | T33: =T30 -> 0 | U33: =SUM(U8:U11)+SUM(U15:U30) ->  | V33: 180337.95 | W33: 185131.96 | X33: 188861.72 | Y33: 184365.14 | Z33: 172564.18 | AA33: 180030.5 | AB33: 171867.61 | AC33: 182549.46 | AD33: 186785.71 | AE33: 185034.37 | AF33: 186949.96 | AG33: 185737.79 | AH33: 2190216.35 | AI33: =O33 -> 2190216.35 | AJ33: =SUM(I33:N33)*2 -> 2197849.8 | AL33: =SUM(L33:N33)*4 -> 2230888.48 | AM33: =N33*12 -> 2228853.48
A35: Operating Expenses
A36: Payroll Expense
A37: 5199 | B37: Management & Leasing Salaries | C37: 8541.9 | D37: 8650.29 | E37: 8531.54 | F37: 7562.43 | G37: 9171.66 | H37: 7930.699 | I37: 8511.02 | J37: 8511.02 | K37: 8334.78 | L37: 8400.42 | M37: 8369.19 | N37: 8369.19 | O37: =SUM(C37:N37) -> 100884.139 | Q37: 5 | R37: Rio@1604 | S37: RIO | U37: =IF(5 = Q37,#REF! * -1,#REF!) ->  | V37: =IF(5 = Q37, C37 * -1, C37) -> -8541.9 | W37: =IF(5 = Q37, D37 * -1, D37) -> -8650.29 | X37: =IF(5 = Q37, E37 * -1, E37) -> -8531.54 | Y37: =IF(5 = Q37, F37 * -1, F37) -> -7562.43 | Z37: =IF(5 = Q37, G37 * -1, G37) -> -9171.66 | AA37: =IF(5 = Q37, H37 * -1, H37) -> -7930.699 | AB37: =IF(5 = Q37, I37 * -1, I37) -> -8511.02 | AC37: =IF(5 = Q37, J37 * -1, J37) -> -8511.02 | AD37: =IF(5 = Q37, K37 * -1, K37) -> -8334.78 | AE37: =IF(5 = Q37, L37 * -1, L37) -> -8400.42 | AF37: =IF(5 = Q37, M37 * -1, M37) -> -8369.19 | AG37: =IF(5 = Q37, N37 * -1, N37) -> -8369.19 | AH37: =IF(5 = Q37, O37 * -1, O37) -> -100884.139 | AI37: =O37 -> 100884.139 | AJ37: =SUM(I37:N37)*2 -> 100991.24 | AL37: =SUM(L37:N37)*4 -> 100555.2 | AM37: =N37*12 -> 100430.28
A38: 5198 | B38: Maintenance Salaries | C38: 4694.39 | D38: 5600 | E38: 5600 | F38: 6895.693 | G38: 6809.453 | H38: 7466.585 | I38: 7782.69 | J38: 7782.69 | K38: 7359.0075 | L38: 7349.35 | M38: 7130.68 | N38: 7130.68 | O38: 81601.2185 | Q38: 5 | R38: Rio@1604 | S38: RIO | U38: =IF(5 = Q38,#REF! * -1,#REF!) ->  | V38: -4694.39 | W38: -5600 | X38: -5600 | Y38: -6895.693 | Z38: -6809.453 | AA38: -7466.585 | AB38: -7782.69 | AC38: -7782.69 | AD38: -7359.0075 | AE38: -7349.35 | AF38: -7130.68 | AG38: -7130.68 | AH38: -81601.2185 | AI38: 81601.2185 | AJ38: 89070.195 | AL38: 86442.84 | AM38: 85568.16
A39: 5109 | B39: Benefits | C39: 686.24 | D39: 686.24 | E39: 686.24 | F39: 686.24 | G39: 1125.39 | H39: 1125.39 | I39: 1563.84 | J39: 1563.84 | K39: 1541.89 | L39: 1541.89 | M39: 1541.89 | N39: 1541.89 | O39: 14290.98 | Q39: 5 | R39: Rio@1604 | S39: RIO | U39: =IF(5 = Q39,#REF! * -1,#REF!) ->  | V39: -686.24 | W39: -686.24 | X39: -686.24 | Y39: -686.24 | Z39: -1125.39 | AA39: -1125.39 | AB39: -1563.84 | AC39: -1563.84 | AD39: -1541.89 | AE39: -1541.89 | AF39: -1541.89 | AG39: -1541.89 | AH39: -14290.98 | AI39: 14290.98 | AJ39: 18590.48 | AL39: 18502.68 | AM39: 18502.68
A40: 5110 | B40: Payroll Taxes | C40: 1695.85 | D40: 1624.01 | E40: 1624.01 | F40: 1399.56 | G40: 1339.6 | H40: 1566.27 | I40: 1310.88 | J40: 1310.88 | K40: 1413.21 | L40: 1448.55 | M40: 1426.62 | N40: 1426.62 | O40: 17586.06 | Q40: 5 | R40: Rio@1604 | S40: RIO | U40: =IF(5 = Q40,#REF! * -1,#REF!) ->  | V40: -1695.85 | W40: -1624.01 | X40: -1624.01 | Y40: -1399.56 | Z40: -1339.6 | AA40: -1566.27 | AB40: -1310.88 | AC40: -1310.88 | AD40: -1413.21 | AE40: -1448.55 | AF40: -1426.62 | AG40: -1426.62 | AH40: -17586.06 | AI40: 17586.06 | AJ40: 16673.52 | AL40: 17207.16 | AM40: 17119.44
B41: Payroll Expense | C41: =SUM(C37:C40) -> 15618.38 | D41: =SUM(D37:D40) -> 16560.54 | E41: =SUM(E37:E40) -> 16441.79 | F41: =SUM(F37:F40) -> 16543.923 | G41: 18446.103 | H41: 18088.944 | I41: 19168.43 | J41: 19168.43 | K41: 18648.8875 | L41: =SUM(L37:L40) -> 18740.21 | M41: 18468.38 | N41: =SUM(N37:N40) -> 18468.38 | O41: 214362.3975 | Q41: 5 | R41: =#REF! ->  | S41: =#REF! ->  | T41: =#REF! ->  | U41: =SUM(U37:U40) ->  | V41: -15618.38 | W41: -16560.54 | X41: -16441.79 | Y41: -16543.923 | Z41: -18446.103 | AA41: -18088.944 | AB41: -19168.43 | AC41: -19168.43 | AD41: -18648.8875 | AE41: -18740.21 | AF41: -18468.38 | AG41: -18468.38 | AH41: -214362.3975 | AI41: 214362.3975 | AJ41: 225325.435 | AL41: 222707.88 | AM41: 221620.56
A43: Utility Expense
A44: 5201 | B44: Electricity | C44: 2818.42 | D44: 2830.39 | E44: 2830.39 | F44: 2680.25 | G44: 2419 | H44: 2791.373333 | I44: 3907.79 | J44: 942.82 | K44: 1302.88 | L44: 2476.46 | M44: 2476.46 | N44: 1529.22 | O44: =SUM(C44:N44) -> 29005.45333 | Q44: 5 | R44: Rio@1604 | S44: RIO | U44: =IF(5 = Q44,#REF! * -1,#REF!) ->  | V44: =IF(5 = Q44, C44 * -1, C44) -> -2818.42 | W44: =IF(5 = Q44, D44 * -1, D44) -> -2830.39 | X44: =IF(5 = Q44, E44 * -1, E44) -> -2830.39 | Y44: =IF(5 = Q44, F44 * -1, F44) -> -2680.25 | Z44: =IF(5 = Q44, G44 * -1, G44) -> -2419 | AA44: =IF(5 = Q44, H44 * -1, H44) -> -2791.373333 | AB44: =IF(5 = Q44, I44 * -1, I44) -> -3907.79 | AC44: =IF(5 = Q44, J44 * -1, J44) -> -942.82 | AD44: =IF(5 = Q44, K44 * -1, K44) -> -1302.88 | AE44: =IF(5 = Q44, L44 * -1, L44) -> -2476.46 | AF44: =IF(5 = Q44, M44 * -1, M44) -> -2476.46 | AG44: =IF(5 = Q44, N44 * -1, N44) -> -1529.22 | AH44: =IF(5 = Q44, O44 * -1, O44) -> -29005.45333 | AI44: =O44 -> 29005.45333 | AJ44: =SUM(I44:N44)*2 -> 25271.26 | AL44: =SUM(L44:N44)*4 -> 25928.56 | AM44: =N44*12 -> 18350.64
A45: 5202 | B45: Water & Sewer | C45: 10369.01 | D45: 11509.28 | E45: 11509.28 | F45: 10802.54 | G45: 9062.82 | H45: 9062.82 | I45: 9062.82 | J45: 9062.82 | K45: 11321.73 | L45: 15067.33 | M45: 15519.76 | N45: 13384.67 | O45: =SUM(C45:N45) -> 135734.88 | Q45: 5 | R45: Rio@1604 | S45: RIO | U45: =IF(5 = Q45,#REF! * -1,#REF!) ->  | V45: =IF(5 = Q45, C45 * -1, C45) -> -10369.01 | W45: =IF(5 = Q45, D45 * -1, D45) -> -11509.28 | X45: =IF(5 = Q45, E45 * -1, E45) -> -11509.28 | Y45: =IF(5 = Q45, F45 * -1, F45) -> -10802.54 | Z45: =IF(5 = Q45, G45 * -1, G45) -> -9062.82 | AA45: =IF(5 = Q45, H45 * -1, H45) -> -9062.82 | AB45: =IF(5 = Q45, I45 * -1, I45) -> -9062.82 | AC45: =IF(5 = Q45, J45 * -1, J45) -> -9062.82 | AD45: =IF(5 = Q45, K45 * -1, K45) -> -11321.73 | AE45: =IF(5 = Q45, L45 * -1, L45) -> -15067.33 | AF45: =IF(5 = Q45, M45 * -1, M45) -> -15519.76 | AG45: =IF(5 = Q45, N45 * -1, N45) -> -13384.67 | AH45: =IF(5 = Q45, O45 * -1, O45) -> -135734.88 | AI45: 135734.88 | AJ45: 146838.26 | AL45: 175887.04 | AM45: 160616.04
A46: 5204 | B46: Trash Removal | C46: 2300 | D46: 2300 | E46: 2300 | F46: 2677.33 | G46: 2677.33 | H46: 2677.33 | I46: 4432.25 | J46: 3854.42 | K46: 4306.35 | L46: 3153.12625 | M46: 3153.12625 | N46: 3032 | O46: =SUM(C46:N46) -> 36863.2625 | Q46: 5 | R46: Rio@1604 | S46: RIO | U46: =IF(5 = Q46,#REF! * -1,#REF!) ->  | V46: =IF(5 = Q46, C46 * -1, C46) -> -2300 | W46: =IF(5 = Q46, D46 * -1, D46) -> -2300 | X46: =IF(5 = Q46, E46 * -1, E46) -> -2300 | Y46: =IF(5 = Q46, F46 * -1, F46) -> -2677.33 | Z46: =IF(5 = Q46, G46 * -1, G46) -> -2677.33 | AA46: =IF(5 = Q46, H46 * -1, H46) -> -2677.33 | AB46: =IF(5 = Q46, I46 * -1, I46) -> -4432.25 | AC46: =IF(5 = Q46, J46 * -1, J46) -> -3854.42 | AD46: =IF(5 = Q46, K46 * -1, K46) -> -4306.35 | AE46: =IF(5 = Q46, L46 * -1, L46) -> -3153.12625 | AF46: =IF(5 = Q46, M46 * -1, M46) -> -3153.12625 | AG46: =IF(5 = Q46, N46 * -1, N46) -> -3032 | AH46: =IF(5 = Q46, O46 * -1, O46) -> -36863.2625 | AI46: 36863.2625 | AJ46: 43862.545 | AL46: 37353.01 | AM46: 36384
B47: Utility Expense | C47: =SUM(C44:C46) -> 15487.43 | D47: 16639.67 | E47: 16639.67 | F47: 16160.12 | G47: 14159.15 | H47: 14531.52333 | I47: 17402.86 | J47: 13860.06 | K47: 16930.96 | L47: =SUM(L44:L46) -> 20696.91625 | M47: 21149.34625 | N47: =SUM(N44:N46) -> 17945.89 | O47: 201603.5958 | Q47: 5 | R47: =R46 -> Rio@1604 | S47: =S46 -> RIO | T47: =T46 -> 0 | U47: =SUM(U44:U46) ->  | V47: -15487.43 | W47: -16639.67 | X47: -16639.67 | Y47: -16160.12 | Z47: -14159.15 | AA47: -14531.52333 | AB47: -17402.86 | AC47: -13860.06 | AD47: -16930.96 | AE47: -20696.91625 | AF47: -21149.34625 | AG47: -17945.89 | AH47: -201603.5958 | AI47: 201603.5958 | AJ47: 215972.065 | AL47: 239168.61 | AM47: 215350.68
A49: General Repairs AND Maintenance Expense
A50: 5301 | B50: HVAC Repair | C50: 0 | D50: 188.9 | E50: 0 | F50: 0 | G50: 0 | H50: 0 | I50: 173.27 | J50: 0 | K50: 0 | L50: 0 | M50: 0 | N50: 0 | O50: =SUM(C50:N50) -> 362.17 | Q50: 5 | R50: Rio@1604 | S50: RIO | U50: =IF(5 = Q50,#REF! * -1,#REF!) ->  | V50: =IF(5 = Q50, C50 * -1, C50) -> 0 | W50: =IF(5 = Q50, D50 * -1, D50) -> -188.9 | X50: =IF(5 = Q50, E50 * -1, E50) -> 0 | Y50: =IF(5 = Q50, F50 * -1, F50) -> 0 | Z50: =IF(5 = Q50, G50 * -1, G50) -> 0 | AA50: =IF(5 = Q50, H50 * -1, H50) -> 0 | AB50: =IF(5 = Q50, I50 * -1, I50) -> -173.27 | AC50: =IF(5 = Q50, J50 * -1, J50) -> 0 | AD50: =IF(5 = Q50, K50 * -1, K50) -> 0 | AE50: =IF(5 = Q50, L50 * -1, L50) -> 0 | AF50: =IF(5 = Q50, M50 * -1, M50) -> 0 | AG50: =IF(5 = Q50, N50 * -1, N50) -> 0 | AH50: =IF(5 = Q50, O50 * -1, O50) -> -362.17 | AI50: =O50 -> 362.17 | AJ50: =SUM(I50:N50)*2 -> 346.54 | AL50: =SUM(L50:N50)*4 -> 0 | AM50: =N50*12 -> 0
A51: 5302 | B51: Plumbing Repair | C51: 0 | D51: 277 | E51: 0 | F51: 0 | G51: 350.73 | H51: 0 | I51: 311.71 | J51: 823.55 | K51: 295 | L51: 295 | M51: 295 | N51: 0 | O51: 2647.99 | Q51: 5 | R51: Rio@1604 | S51: RIO | U51: =IF(5 = Q51,#REF! * -1,#REF!) ->  | V51: 0 | W51: -277 | X51: 0 | Y51: 0 | Z51: -350.73 | AA51: 0 | AB51: -311.71 | AC51: -823.55 | AD51: -295 | AE51: -295 | AF51: -295 | AG51: 0 | AH51: -2647.99 | AI51: 2647.99 | AJ51: 4040.52 | AL51: 2360 | AM51: 0
A52: 5303 | B52: Electrical & Lighting Repair | C52: 0 | D52: 301.37 | E52: 0 | F52: 0 | G52: 0 | H52: 0 | I52: 0 | J52: 0 | K52: 0 | L52: 0 | M52: 0 | N52: 0 | O52: 301.37 | Q52: 5 | R52: Rio@1604 | S52: RIO | U52: =IF(5 = Q52,#REF! * -1,#REF!) ->  | V52: 0 | W52: -301.37 | X52: 0 | Y52: 0 | Z52: 0 | AA52: 0 | AB52: 0 | AC52: 0 | AD52: 0 | AE52: 0 | AF52: 0 | AG52: 0 | AH52: -301.37 | AI52: 301.37 | AJ52: 0 | AL52: 0 | AM52: 0
A53: 5304 | B53: Pool Expense | C53: 0 | D53: 508.76 | E53: 0 | F53: 33.56 | G53: 247.24 | H53: 0 | I53: 392.7 | J53: 63.13 | K53: 555.12 | L53: 0 | M53: 0 | N53: 40.13 | O53: 1840.64 | Q53: 5 | R53: Rio@1604 | S53: RIO | U53: =IF(5 = Q53,#REF! * -1,#REF!) ->  | V53: 0 | W53: -508.76 | X53: 0 | Y53: -33.56 | Z53: -247.24 | AA53: 0 | AB53: -392.7 | AC53: -63.13 | AD53: -555.12 | AE53: 0 | AF53: 0 | AG53: -40.13 | AH53: -1840.64 | AI53: 1840.64 | AJ53: 2102.16 | AL53: 160.52 | AM53: 481.56
A54: 5305 | B54: Landscaping Expense | C54: 2050 | D54: 2050 | E54: 2050 | F54: 2050 | G54: 2050 | H54: 2050 | I54: 0 | J54: 32.37 | K54: 0 | L54: 0 | M54: 0 | N54: 0 | O54: 12332.37 | Q54: 5 | R54: Rio@1604 | S54: RIO | U54: =IF(5 = Q54,#REF! * -1,#REF!) ->  | V54: -2050 | W54: -2050 | X54: -2050 | Y54: -2050 | Z54: -2050 | AA54: -2050 | AB54: 0 | AC54: -32.37 | AD54: 0 | AE54: 0 | AF54: 0 | AG54: 0 | AH54: -12332.37 | AI54: 12332.37 | AJ54: 64.74 | AL54: 0 | AM54: 0
A55: 5306 | B55: Window & Door Repair | C55: 0 | D55: 0 | E55: 0 | F55: 0 | G55: 0 | H55: 0 | I55: 0 | J55: 113.59 | K55: 0 | L55: 0 | M55: 160 | N55: 0 | O55: 273.59 | Q55: 5 | R55: Rio@1604 | S55: RIO | U55: =IF(5 = Q55,#REF! * -1,#REF!) ->  | V55: 0 | W55: 0 | X55: 0 | Y55: 0 | Z55: 0 | AA55: 0 | AB55: 0 | AC55: -113.59 | AD55: 0 | AE55: 0 | AF55: -160 | AG55: 0 | AH55: -273.59 | AI55: 273.59 | AJ55: 547.18 | AL55: 640 | AM55: 0
A56: 5307 | B56: Appliance Repair | C56: 0 | D56: 522.47 | E56: 0 | F56: 0 | G56: 0 | H56: 0 | I56: 0 | J56: 0 | K56: 0 | L56: 0 | M56: 0 | N56: 8.57 | O56: 531.04 | Q56: 5 | R56: Rio@1604 | S56: RIO | U56: =IF(5 = Q56,#REF! * -1,#REF!) ->  | V56: 0 | W56: -522.47 | X56: 0 | Y56: 0 | Z56: 0 | AA56: 0 | AB56: 0 | AC56: 0 | AD56: 0 | AE56: 0 | AF56: 0 | AG56: -8.57 | AH56: -531.04 | AI56: 531.04 | AJ56: 17.14 | AL56: 34.28 | AM56: 102.84
A57: 5308 | B57: Pest Control | C57: 0 | D57: 0 | E57: 0 | F57: 0 | G57: 0 | H57: 0 | I57: 0 | J57: 60.52 | K57: 0 | L57: 214.34 | M57: 0 | N57: 601.88 | O57: 876.74 | Q57: 5 | R57: Rio@1604 | S57: RIO | U57: =IF(5 = Q57,#REF! * -1,#REF!) ->  | V57: 0 | W57: 0 | X57: 0 | Y57: 0 | Z57: 0 | AA57: 0 | AB57: 0 | AC57: -60.52 | AD57: 0 | AE57: -214.34 | AF57: 0 | AG57: -601.88 | AH57: -876.74 | AI57: 876.74 | AJ57: 1753.48 | AL57: 3264.88 | AM57: 7222.56
B58: General Repairs AND Maintenance Expense | C58: =SUM(C50:C57) -> 2050 | D58: 3848.5 | E58: 2050 | F58: 2083.56 | G58: 2647.97 | H58: 2050 | I58: 877.68 | J58: 1093.16 | K58: 850.12 | L58: =SUM(L50:L57) -> 509.34 | M58: 455 | N58: =SUM(N50:N57) -> 650.58 | O58: =SUM(O50:O57) -> 19165.91 | Q58: 5 | R58: =R57 -> Rio@1604 | S58: =S57 -> RIO | T58: =T57 -> 0 | U58: =SUM(U50:U57) ->  | V58: -2050 | W58: -3848.5 | X58: -2050 | Y58: -2083.56 | Z58: -2647.97 | AA58: -2050 | AB58: -877.68 | AC58: -1093.16 | AD58: -850.12 | AE58: -509.34 | AF58: -455 | AG58: -650.58 | AH58: -19165.91 | AI58: 19165.91 | AJ58: 8871.76 | AL58: 6459.68 | AM58: 7806.96
A60: Turnover Expense
A61: 5402 | B61: Cleaning | C61: 95.2 | D61: 162 | E61: 550 | F61: 93.73 | G61: 250 | H61: 350 | I61: 87.65 | J61: 64.92 | K61: 0 | L61: 473.37 | M61: 350 | N61: 0 | O61: =SUM(C61:N61) -> 2476.87 | Q61: 5 | R61: Rio@1604 | S61: RIO | U61: =IF(5 = Q61,#REF! * -1,#REF!) ->  | V61: =IF(5 = Q61, C61 * -1, C61) -> -95.2 | W61: =IF(5 = Q61, D61 * -1, D61) -> -162 | X61: =IF(5 = Q61, E61 * -1, E61) -> -550 | Y61: =IF(5 = Q61, F61 * -1, F61) -> -93.73 | Z61: =IF(5 = Q61, G61 * -1, G61) -> -250 | AA61: =IF(5 = Q61, H61 * -1, H61) -> -350 | AB61: =IF(5 = Q61, I61 * -1, I61) -> -87.65 | AC61: =IF(5 = Q61, J61 * -1, J61) -> -64.92 | AD61: =IF(5 = Q61, K61 * -1, K61) -> 0 | AE61: =IF(5 = Q61, L61 * -1, L61) -> -473.37 | AF61: =IF(5 = Q61, M61 * -1, M61) -> -350 | AG61: =IF(5 = Q61, N61 * -1, N61) -> 0 | AH61: =IF(5 = Q61, O61 * -1, O61) -> -2476.87 | AI61: =O61 -> 2476.87 | AJ61: =SUM(I61:N61)*2 -> 1951.88 | AL61: =SUM(L61:N61)*4 -> 3293.48 | AM61: =N61*12 -> 0
A62: 5405 | B62: Painting & Wall Repair | C62: 634.87 | D62: 440.2 | E62: 0 | F62: 0 | G62: 0 | H62: 0 | I62: 255.08 | J62: 819.15 | K62: 440.2 | L62: 0 | M62: 0 | N62: 385.69 | O62: 2975.19 | Q62: 5 | R62: Rio@1604 | S62: RIO | U62: =IF(5 = Q62,#REF! * -1,#REF!) ->  | V62: =IF(5 = Q62, C62 * -1, C62) -> -634.87 | W62: =IF(5 = Q62, D62 * -1, D62) -> -440.2 | X62: =IF(5 = Q62, E62 * -1, E62) -> 0 | Y62: =IF(5 = Q62, F62 * -1, F62) -> 0 | Z62: =IF(5 = Q62, G62 * -1, G62) -> 0 | AA62: =IF(5 = Q62, H62 * -1, H62) -> 0 | AB62: =IF(5 = Q62, I62 * -1, I62) -> -255.08 | AC62: =IF(5 = Q62, J62 * -1, J62) -> -819.15 | AD62: =IF(5 = Q62, K62 * -1, K62) -> -440.2 | AE62: =IF(5 = Q62, L62 * -1, L62) -> 0 | AF62: =IF(5 = Q62, M62 * -1, M62) -> 0 | AG62: =IF(5 = Q62, N62 * -1, N62) -> -385.69 | AH62: =IF(5 = Q62, O62 * -1, O62) -> -2975.19 | AI62: 2975.19 | AJ62: 3800.24 | AL62: 1542.76 | AM62: 4628.28
A63: 5406 | B63: Locks & Keys | C63: 138.37 | D63: 0 | E63: 0 | F63: 0 | G63: 212.07 | H63: 0 | I63: 210.49 | J63: 157.74 | K63: 0 | L63: 0 | M63: 0 | N63: 175 | O63: 893.67 | Q63: 5 | R63: Rio@1604 | S63: RIO | U63: =IF(5 = Q63,#REF! * -1,#REF!) ->  | V63: =IF(5 = Q63, C63 * -1, C63) -> -138.37 | W63: =IF(5 = Q63, D63 * -1, D63) -> 0 | X63: =IF(5 = Q63, E63 * -1, E63) -> 0 | Y63: =IF(5 = Q63, F63 * -1, F63) -> 0 | Z63: =IF(5 = Q63, G63 * -1, G63) -> -212.07 | AA63: =IF(5 = Q63, H63 * -1, H63) -> 0 | AB63: =IF(5 = Q63, I63 * -1, I63) -> -210.49 | AC63: =IF(5 = Q63, J63 * -1, J63) -> -157.74 | AD63: =IF(5 = Q63, K63 * -1, K63) -> 0 | AE63: =IF(5 = Q63, L63 * -1, L63) -> 0 | AF63: =IF(5 = Q63, M63 * -1, M63) -> 0 | AG63: =IF(5 = Q63, N63 * -1, N63) -> -175 | AH63: =IF(5 = Q63, O63 * -1, O63) -> -893.67 | AI63: 893.67 | AJ63: 1086.46 | AL63: 700 | AM63: 2100
A64: 5408 | B64: Make Ready Materials | C64: 0 | D64: 0 | E64: 0 | F64: 0 | G64: 354.72 | H64: 0 | I64: 0 | J64: 949.3 | K64: 688.1 | L64: 473.37 | M64: 800 | N64: 916.73 | O64: 4182.22 | Q64: 5 | R64: Rio@1604 | S64: RIO | U64: =IF(5 = Q64,#REF! * -1,#REF!) ->  | V64: =IF(5 = Q64, C64 * -1, C64) -> 0 | W64: =IF(5 = Q64, D64 * -1, D64) -> 0 | X64: =IF(5 = Q64, E64 * -1, E64) -> 0 | Y64: =IF(5 = Q64, F64 * -1, F64) -> 0 | Z64: =IF(5 = Q64, G64 * -1, G64) -> -354.72 | AA64: =IF(5 = Q64, H64 * -1, H64) -> 0 | AB64: =IF(5 = Q64, I64 * -1, I64) -> 0 | AC64: =IF(5 = Q64, J64 * -1, J64) -> -949.3 | AD64: =IF(5 = Q64, K64 * -1, K64) -> -688.1 | AE64: =IF(5 = Q64, L64 * -1, L64) -> -473.37 | AF64: =IF(5 = Q64, M64 * -1, M64) -> -800 | AG64: =IF(5 = Q64, N64 * -1, N64) -> -916.73 | AH64: =IF(5 = Q64, O64 * -1, O64) -> -4182.22 | AI64: 4182.22 | AJ64: 7655 | AL64: 8760.4 | AM64: 11000.76
B65: Turnover Expense | C65: =SUM(C61:C64) -> 868.44 | D65: 602.2 | E65: 550 | F65: 93.73 | G65: 816.79 | H65: 350 | I65: 553.22 | J65: 1991.11 | K65: 1128.3 | L65: =SUM(L61:L64) -> 946.74 | M65: 1150 | N65: =SUM(N61:N64) -> 1477.42 | O65: 10527.95 | Q65: 5 | R65: =R64 -> Rio@1604 | S65: =S64 -> RIO | T65: =T64 -> 0 | U65: =SUM(U61:U64) ->  | V65: -868.44 | W65: -602.2 | X65: -550 | Y65: -93.73 | Z65: -816.79 | AA65: -350 | AB65: -553.22 | AC65: -1991.11 | AD65: -1128.3 | AE65: -946.74 | AF65: -1150 | AG65: -1477.42 | AH65: -10527.95 | AI65: 10527.95 | AJ65: 14493.58 | AL65: 14296.64 | AM65: 17729.04
A67: Administrative Expense
A68: 5501 | B68: Utility Billing Expense | C68: 492.49 | D68: 492.49 | E68: 492.49 | F68: 492.49 | G68: 492.49 | H68: 492.49 | I68: 492.49 | J68: 492.49 | K68: 492.49 | L68: 492.49 | M68: 492.49 | N68: 492.49 | O68: =SUM(C68:N68) -> 5909.88 | Q68: 5 | R68: Rio@1604 | S68: RIO | U68: =IF(5 = Q68,#REF! * -1,#REF!) ->  | V68: =IF(5 = Q68, C68 * -1, C68) -> -492.49 | W68: =IF(5 = Q68, D68 * -1, D68) -> -492.49 | X68: =IF(5 = Q68, E68 * -1, E68) -> -492.49 | Y68: =IF(5 = Q68, F68 * -1, F68) -> -492.49 | Z68: =IF(5 = Q68, G68 * -1, G68) -> -492.49 | AA68: =IF(5 = Q68, H68 * -1, H68) -> -492.49 | AB68: =IF(5 = Q68, I68 * -1, I68) -> -492.49 | AC68: =IF(5 = Q68, J68 * -1, J68) -> -492.49 | AD68: =IF(5 = Q68, K68 * -1, K68) -> -492.49 | AE68: =IF(5 = Q68, L68 * -1, L68) -> -492.49 | AF68: =IF(5 = Q68, M68 * -1, M68) -> -492.49 | AG68: =IF(5 = Q68, N68 * -1, N68) -> -492.49 | AH68: =IF(5 = Q68, O68 * -1, O68) -> -5909.88 | AI68: =O68 -> 5909.88 | AJ68: =SUM(I68:N68)*2 -> 5909.88 | AL68: =SUM(L68:N68)*4 -> 5909.88 | AM68: =N68*12 -> 5909.88
A69: 5502 | B69: Bulk Cable & Internet Contract | C69: 6700 | D69: 6700 | E69: 6700 | F69: 7031.4 | G69: 7031.4 | H69: 7031.4 | I69: 7031.4 | J69: 7031.4 | K69: 7031.4 | L69: 7031.4 | M69: 7031.4 | N69: 7031.4 | O69: 83382.6 | Q69: 5 | R69: Rio@1604 | S69: RIO | U69: =IF(5 = Q69,#REF! * -1,#REF!) ->  | V69: -6700 | W69: -6700 | X69: -6700 | Y69: -7031.4 | Z69: -7031.4 | AA69: -7031.4 | AB69: -7031.4 | AC69: -7031.4 | AD69: -7031.4 | AE69: -7031.4 | AF69: -7031.4 | AG69: -7031.4 | AH69: -83382.6 | AI69: 83382.6 | AJ69: 84376.8 | AL69: 84376.8 | AM69: 84376.8
A70: 5503 | B70: Software Expense | C70: 669.3 | D70: 742.14 | E70: 189.7 | F70: 134.25 | G70: 204.3 | H70: 990 | I70: 990 | J70: 990 | K70: 957 | L70: 957 | M70: 957 | N70: 957 | O70: 8737.69 | Q70: 5 | R70: Rio@1604 | S70: RIO | U70: =IF(5 = Q70,#REF! * -1,#REF!) ->  | V70: -669.3 | W70: -742.14 | X70: -189.7 | Y70: -134.25 | Z70: -204.3 | AA70: -990 | AB70: -990 | AC70: -990 | AD70: -957 | AE70: -957 | AF70: -957 | AG70: -957 | AH70: -8737.69 | AI70: 8737.69 | AJ70: 11616 | AL70: 11484 | AM70: 11484
A71: 5506 | B71: Office Supplies | C71: 0 | D71: 126.21 | E71: 505.84 | F71: 0 | G71: 120.6 | H71: 0 | I71: 0 | J71: 0 | K71: 0 | L71: 0 | M71: 102.14 | N71: 141.37 | O71: 996.16 | Q71: 5 | R71: Rio@1604 | S71: RIO | U71: =IF(5 = Q71,#REF! * -1,#REF!) ->  | V71: 0 | W71: -126.21 | X71: -505.84 | Y71: 0 | Z71: -120.6 | AA71: 0 | AB71: 0 | AC71: 0 | AD71: 0 | AE71: 0 | AF71: -102.14 | AG71: -141.37 | AH71: -996.16 | AI71: 996.16 | AJ71: 487.02 | AL71: 974.04 | AM71: 1696.44
A72: 5507 | B72: Renter's Liability Insurance | C72: 839.42 | D72: 850 | E72: 850 | F72: 850 | G72: 850 | H72: 849.25 | I72: 794.25 | J72: 832.26 | K72: 855.2 | L72: 855.2 | M72: 855.2 | N72: 855.2 | O72: 10135.98 | Q72: 5 | R72: Rio@1604 | S72: RIO | U72: =IF(5 = Q72,#REF! * -1,#REF!) ->  | V72: -839.42 | W72: -850 | X72: -850 | Y72: -850 | Z72: -850 | AA72: -849.25 | AB72: -794.25 | AC72: -832.26 | AD72: -855.2 | AE72: -855.2 | AF72: -855.2 | AG72: -855.2 | AH72: -10135.98 | AI72: 10135.98 | AJ72: 10094.62 | AL72: 10262.4 | AM72: 10262.4
A73: 5510 | B73: Printer & Copier | C73: 120.01 | D73: 120.01 | E73: 120.01 | F73: 120.01 | G73: 120.01 | H73: 120.01 | I73: 120.01 | J73: 120.01 | K73: 187.33 | L73: 152.23 | M73: 152.23 | N73: 152.23 | O73: 1604.1 | Q73: 5 | R73: Rio@1604 | S73: RIO | U73: =IF(5 = Q73,#REF! * -1,#REF!) ->  | V73: -120.01 | W73: -120.01 | X73: -120.01 | Y73: -120.01 | Z73: -120.01 | AA73: -120.01 | AB73: -120.01 | AC73: -120.01 | AD73: -187.33 | AE73: -152.23 | AF73: -152.23 | AG73: -152.23 | AH73: -1604.1 | AI73: 1604.1 | AJ73: 1768.08 | AL73: 1826.76 | AM73: 1826.76
A74: 5599 | B74: Other Administrative Expenses | C74: 0 | D74: 0 | E74: 0 | F74: 0 | G74: 0 | H74: 0 | I74: 0 | J74: 0 | K74: 0 | L74: 0 | M74: 0 | N74: 0 | O74: 0 | Q74: 5 | R74: Rio@1604 | S74: RIO | U74: =IF(5 = Q74,#REF! * -1,#REF!) ->  | V74: 0 | W74: 0 | X74: 0 | Y74: 0 | Z74: 0 | AA74: 0 | AB74: 0 | AC74: 0 | AD74: 0 | AE74: 0 | AF74: 0 | AG74: 0 | AH74: 0 | AI74: 0 | AJ74: 0 | AL74: 0 | AM74: 0
B75: Administrative Expense | C75: =SUM(C68:C74) -> 8821.22 | D75: 9030.85 | E75: 8858.04 | F75: 8628.15 | G75: 8818.8 | H75: 9483.15 | I75: 9428.15 | J75: 9466.16 | K75: 9523.42 | L75: =SUM(L68:L74) -> 9488.32 | M75: 9590.46 | N75: =SUM(N68:N74) -> 9629.69 | O75: 110766.41 | Q75: 5 | R75: =R74 -> Rio@1604 | S75: =S74 -> RIO | T75: =T74 -> 0 | U75: =SUM(U68:U74) ->  | V75: -8821.22 | W75: -9030.85 | X75: -8858.04 | Y75: -8628.15 | Z75: -8818.8 | AA75: -9483.15 | AB75: -9428.15 | AC75: -9466.16 | AD75: -9523.42 | AE75: -9488.32 | AF75: -9590.46 | AG75: -9629.69 | AH75: -110766.41 | AI75: 110766.41 | AJ75: 114252.4 | AL75: 114833.88 | AM75: 115556.28
A77: Advertising AND Marketing Expense
A78: 5601 | B78: Online Leasing & Advertising | C78: 1908 | D78: 3116 | E78: 3116 | F78: 2486 | G78: 2486 | H78: 2486 | I78: 2486 | J78: 1296 | K78: 1296 | L78: 1650 | M78: 800 | N78: 1296 | O78: =SUM(C78:N78) -> 24422 | Q78: 5 | R78: Rio@1604 | S78: RIO | U78: =IF(5 = Q78,#REF! * -1,#REF!) ->  | V78: =IF(5 = Q78, C78 * -1, C78) -> -1908 | W78: =IF(5 = Q78, D78 * -1, D78) -> -3116 | X78: =IF(5 = Q78, E78 * -1, E78) -> -3116 | Y78: =IF(5 = Q78, F78 * -1, F78) -> -2486 | Z78: =IF(5 = Q78, G78 * -1, G78) -> -2486 | AA78: =IF(5 = Q78, H78 * -1, H78) -> -2486 | AB78: =IF(5 = Q78, I78 * -1, I78) -> -2486 | AC78: =IF(5 = Q78, J78 * -1, J78) -> -1296 | AD78: =IF(5 = Q78, K78 * -1, K78) -> -1296 | AE78: =IF(5 = Q78, L78 * -1, L78) -> -1650 | AF78: =IF(5 = Q78, M78 * -1, M78) -> -800 | AG78: =IF(5 = Q78, N78 * -1, N78) -> -1296 | AH78: =IF(5 = Q78, O78 * -1, O78) -> -24422 | AI78: =O78 -> 24422 | AJ78: =SUM(I78:N78)*2 -> 17648 | AL78: =SUM(L78:N78)*4 -> 14984 | AM78: =N78*12 -> 15552
A79: 5605 | B79: Resident Events | C79: 0 | D79: 0 | E79: 0 | F79: 0 | G79: 0 | H79: 0 | I79: 0 | J79: 0 | K79: 0 | L79: 0 | M79: 0 | N79: 0 | O79: =SUM(C79:N79) -> 0 | Q79: 5 | R79: Rio@1604 | S79: RIO | U79: =IF(5 = Q79,#REF! * -1,#REF!) ->  | V79: =IF(5 = Q79, C79 * -1, C79) -> 0 | W79: =IF(5 = Q79, D79 * -1, D79) -> 0 | X79: =IF(5 = Q79, E79 * -1, E79) -> 0 | Y79: =IF(5 = Q79, F79 * -1, F79) -> 0 | Z79: =IF(5 = Q79, G79 * -1, G79) -> 0 | AA79: =IF(5 = Q79, H79 * -1, H79) -> 0 | AB79: =IF(5 = Q79, I79 * -1, I79) -> 0 | AC79: =IF(5 = Q79, J79 * -1, J79) -> 0 | AD79: =IF(5 = Q79, K79 * -1, K79) -> 0 | AE79: =IF(5 = Q79, L79 * -1, L79) -> 0 | AF79: =IF(5 = Q79, M79 * -1, M79) -> 0 | AG79: =IF(5 = Q79, N79 * -1, N79) -> 0 | AH79: =IF(5 = Q79, O79 * -1, O79) -> 0 | AI79: 0 | AJ79: =SUM(I79:N79)*2 -> 0 | AL79: =SUM(L79:N79)*4 -> 0 | AM79: =N79*12 -> 0
B80: Advertising AND Marketing Expense | C80: =SUM(C78:C79) -> 1908 | D80: 3116 | E80: 3116 | F80: =SUM(F78:F79) -> 2486 | G80: =SUM(G78:G79) -> 2486 | H80: =SUM(H78:H79) -> 2486 | I80: =SUM(I78:I79) -> 2486 | J80: =SUM(J78:J79) -> 1296 | K80: =SUM(K78:K79) -> 1296 | L80: 1650 | M80: 800 | N80: =SUM(N78:N79) -> 1296 | O80: =SUM(O78:O79) -> 24422 | Q80: 5 | R80: =R79 -> Rio@1604 | S80: =S79 -> RIO | T80: =T79 -> 0 | U80: =SUM(U78:U79) ->  | V80: -1908 | W80: -3116 | X80: -3116 | Y80: -2486 | Z80: -2486 | AA80: -2486 | AB80: -2486 | AC80: -1296 | AD80: -1296 | AE80: -1650 | AF80: -800 | AG80: -1296 | AH80: -24422 | AI80: 24422 | AJ80: 17648 | AL80: =SUM(L80:N80)*4 -> 14984 | AM80: =N80*12 -> 15552
A82: Management Fees
A83: 5701 | B83: Management Fee Expense | C83: 4616.1 | D83: 5264 | E83: 5158.35 | F83: 5136.06 | G83: 4695.91 | H83: 5329.43 | I83: 5329.43 | J83: 5329.43 | K83: 5603.57 | L83: 5324 | M83: 5677.61 | N83: 5361.13 | O83: =SUM(C83:N83) -> 62825.02 | Q83: 5 | R83: Rio@1604 | S83: RIO | U83: =IF(5 = Q83,#REF! * -1,#REF!) ->  | V83: =IF(5 = Q83, C83 * -1, C83) -> -4616.1 | W83: =IF(5 = Q83, D83 * -1, D83) -> -5264 | X83: =IF(5 = Q83, E83 * -1, E83) -> -5158.35 | Y83: =IF(5 = Q83, F83 * -1, F83) -> -5136.06 | Z83: =IF(5 = Q83, G83 * -1, G83) -> -4695.91 | AA83: =IF(5 = Q83, H83 * -1, H83) -> -5329.43 | AB83: =IF(5 = Q83, I83 * -1, I83) -> -5329.43 | AC83: =IF(5 = Q83, J83 * -1, J83) -> -5329.43 | AD83: =IF(5 = Q83, K83 * -1, K83) -> -5603.57 | AE83: =IF(5 = Q83, L83 * -1, L83) -> -5324 | AF83: =IF(5 = Q83, M83 * -1, M83) -> -5677.61 | AG83: =IF(5 = Q83, N83 * -1, N83) -> -5361.13 | AH83: =IF(5 = Q83, O83 * -1, O83) -> -62825.02 | AI83: =O83 -> 62825.02 | AJ83: =SUM(I83:N83)*2 -> 65250.34 | AL83: =SUM(L83:N83)*4 -> 65450.96 | AM83: =N83*12 -> 64333.56
B84: Management Fees | C84: =C83 -> 4616.1 | D84: 5264 | E84: 5158.35 | F84: 5136.06 | G84: 4695.91 | H84: 5329.43 | I84: 5329.43 | J84: 5329.43 | K84: 5603.57 | L84: 5324 | M84: 5677.61 | N84: =N83 -> 5361.13 | O84: 62825.02 | Q84: 5 | R84: =R83 -> Rio@1604 | S84: =S83 -> RIO | T84: =T83 -> 0 | U84: =SUM(U83:U83) ->  | V84: -4616.1 | W84: -5264 | X84: -5158.35 | Y84: -5136.06 | Z84: -4695.91 | AA84: -5329.43 | AB84: -5329.43 | AC84: -5329.43 | AD84: -5603.57 | AE84: -5324 | AF84: -5677.61 | AG84: -5361.13 | AH84: -62825.02 | AI84: 62825.02 | AJ84: 65250.34 | AL84: 65450.96 | AM84: 64333.56
A86: Insurance Expense
A87: 5801 | B87: Property Insurance | C87: 10128.11 | D87: 10128.11 | E87: 10128.11 | F87: 10128.11 | G87: 10128.11 | H87: 10128.11 | I87: 10128.11 | J87: 10128.11 | K87: 10128.11 | L87: 10128.11 | M87: 10128.11 | N87: 10128.11 | O87: =SUM(C87:N87) -> 121537.32 | Q87: 5 | R87: Rio@1604 | S87: RIO | U87: =IF(5 = Q87,#REF! * -1,#REF!) ->  | V87: =IF(5 = Q87, C87 * -1, C87) -> -10128.11 | W87: =IF(5 = Q87, D87 * -1, D87) -> -10128.11 | X87: =IF(5 = Q87, E87 * -1, E87) -> -10128.11 | Y87: =IF(5 = Q87, F87 * -1, F87) -> -10128.11 | Z87: =IF(5 = Q87, G87 * -1, G87) -> -10128.11 | AA87: =IF(5 = Q87, H87 * -1, H87) -> -10128.11 | AB87: =IF(5 = Q87, I87 * -1, I87) -> -10128.11 | AC87: =IF(5 = Q87, J87 * -1, J87) -> -10128.11 | AD87: =IF(5 = Q87, K87 * -1, K87) -> -10128.11 | AE87: =IF(5 = Q87, L87 * -1, L87) -> -10128.11 | AF87: =IF(5 = Q87, M87 * -1, M87) -> -10128.11 | AG87: =IF(5 = Q87, N87 * -1, N87) -> -10128.11 | AH87: =IF(5 = Q87, O87 * -1, O87) -> -121537.32 | AI87: =O87 -> 121537.32 | AJ87: =SUM(I87:N87)*2 -> 121537.32 | AL87: =SUM(L87:N87)*4 -> 121537.32 | AM87: =N87*12 -> 121537.32
B88: Insurance Expense | C88: =C87 -> 10128.11 | D88: 10128.11 | E88: 10128.11 | F88: 10128.11 | G88: 10128.11 | H88: 10128.11 | I88: 10128.11 | J88: 10128.11 | K88: 10128.11 | L88: 10128.11 | M88: 10128.11 | N88: =N87 -> 10128.11 | O88: 121537.32 | Q88: 5 | R88: =R87 -> Rio@1604 | S88: =S87 -> RIO | T88: =T87 -> 0 | U88: =SUM(U87:U87) ->  | V88: -10128.11 | W88: -10128.11 | X88: -10128.11 | Y88: -10128.11 | Z88: -10128.11 | AA88: -10128.11 | AB88: -10128.11 | AC88: -10128.11 | AD88: -10128.11 | AE88: -10128.11 | AF88: -10128.11 | AG88: -10128.11 | AH88: -121537.32 | AI88: 121537.32 | AJ88: 121537.32 | AL88: 121537.32 | AM88: 121537.32
A90: Property Tax Expense
A91: 5901 | B91: Property Tax | C91: 26926.255 | D91: 26926.255 | E91: 26926.255 | F91: 26926.255 | G91: 26926.255 | H91: 26926.255 | I91: 26926.255 | J91: 26926.255 | K91: 26926.255 | L91: 26926.255 | M91: 26926.255 | N91: 26926.255 | O91: =SUM(C91:N91) -> 323115.06 | Q91: 5 | R91: Rio@1604 | S91: RIO | U91: =IF(5 = Q91,#REF! * -1,#REF!) ->  | V91: =IF(5 = Q91, C91 * -1, C91) -> -26926.255 | W91: =IF(5 = Q91, D91 * -1, D91) -> -26926.255 | X91: =IF(5 = Q91, E91 * -1, E91) -> -26926.255 | Y91: =IF(5 = Q91, F91 * -1, F91) -> -26926.255 | Z91: =IF(5 = Q91, G91 * -1, G91) -> -26926.255 | AA91: =IF(5 = Q91, H91 * -1, H91) -> -26926.255 | AB91: =IF(5 = Q91, I91 * -1, I91) -> -26926.255 | AC91: =IF(5 = Q91, J91 * -1, J91) -> -26926.255 | AD91: =IF(5 = Q91, K91 * -1, K91) -> -26926.255 | AE91: =IF(5 = Q91, L91 * -1, L91) -> -26926.255 | AF91: =IF(5 = Q91, M91 * -1, M91) -> -26926.255 | AG91: =IF(5 = Q91, N91 * -1, N91) -> -26926.255 | AH91: =IF(5 = Q91, O91 * -1, O91) -> -323115.06 | AI91: =O91 -> 323115.06 | AJ91: =SUM(I91:N91)*2 -> 323115.06 | AL91: =SUM(L91:N91)*4 -> 323115.06 | AM91: =N91*12 -> 323115.06
B92: Property Tax Expense | C92: =C91 -> 26926.255 | D92: 26926.255 | E92: 26926.255 | F92: 26926.255 | G92: 26926.255 | H92: 26926.255 | I92: 26926.255 | J92: 26926.255 | K92: 26926.255 | L92: 26926.255 | M92: =M91 -> 26926.255 | N92: 26926.255 | O92: 323115.06 | Q92: 5 | R92: =R91 -> Rio@1604 | S92: =S91 -> RIO | T92: =T91 -> 0 | U92: =SUM(U91:U91) ->  | V92: -26926.255 | W92: -26926.255 | X92: -26926.255 | Y92: -26926.255 | Z92: -26926.255 | AA92: -26926.255 | AB92: -26926.255 | AC92: -26926.255 | AD92: -26926.255 | AE92: -26926.255 | AF92: -26926.255 | AG92: -26926.255 | AH92: -323115.06 | AI92: 323115.06 | AJ92: 323115.06 | AL92: 323115.06 | AM92: 323115.06
B94: Operating Expenses | C94: =SUM(C92,C88,C84,C80,C75,C65,C58,C47,C41) -> 86423.935 | D94: 92116.125 | E94: 89868.215 | F94: 88185.908 | G94: 89125.088 | H94: 89373.41233 | I94: 92300.135 | J94: 89258.715 | K94: 91035.6225 | L94: 94409.89125 | M94: =SUM(M92,M88,M84,M80,M75,M65,M58,M47,M41) -> 94345.16125 | N94: 91883.455 | O94: 1088325.663 | Q94: 5 | R94: =R91 -> Rio@1604 | S94: =S91 -> RIO | T94: =T91 -> 0 | U94: =SUM(U37:U40)+SUM(U44:U46)+SUM(U50:U57)+SUM(U61:U64)+SUM(U68:U74)+SUM(U78:U79)+SUM(U83:U83)+SUM(U87:U87)+SUM(U91:U91) ->  | V94: -86423.935 | W94: -92116.125 | X94: -89868.215 | Y94: -88185.908 | Z94: -89125.088 | AA94: -89373.41233 | AB94: -92300.135 | AC94: -89258.715 | AD94: -91035.6225 | AE94: -94409.89125 | AF94: -94345.16125 | AG94: -91883.455 | AH94: -1088325.663 | AI94: =O94 -> 1088325.663 | AJ94: =SUM(I94:N94)*2 -> 1106465.96 | AL94: =SUM(L94:N94)*4 -> 1122554.03 | AM94: =N94*12 -> 1102601.46
B96: Net Operating Income | C96: =C33-C94 -> 93914.015 | D96: 93015.835 | E96: 98993.505 | F96: 96179.232 | G96: 83439.092 | H96: 90657.08767 | I96: 79567.475 | J96: 93290.745 | K96: 95750.0875 | L96: 90624.47875 | M96: 92604.79875 | N96: 93854.335 | O96: 1101890.687 | Q96: 4 | R96: =R91 -> Rio@1604 | S96: =S91 -> RIO | T96: =T91 -> 0 | U96: =SUM(U8:U11)+SUM(U15:U30)+SUM(U37:U40)+SUM(U44:U46)+SUM(U50:U57)+SUM(U61:U64)+SUM(U68:U74)+SUM(U78:U79)+SUM(U83:U83)+SUM(U87:U87)+SUM(U91:U91) ->  | V96: 93914.015 | W96: 93015.835 | X96: 98993.505 | Y96: 96179.232 | Z96: 83439.092 | AA96: 90657.08767 | AB96: 79567.475 | AC96: 93290.745 | AD96: 95750.0875 | AE96: 90624.47875 | AF96: 92604.79875 | AG96: 93854.335 | AH96: 1101890.687 | AI96: =O96 -> 1101890.687 | AJ96: =SUM(I96:N96)*2 -> 1091383.84 | AL96: =SUM(L96:N96)*4 -> 1108334.45 | AM96: =N96*12 -> 1126252.02
